Cogmind - Beta 14 @@@ ROGUE MODE // 2024.11.09 @ 21:05:36 Player: Darsidian Result: Destroyed by G-67 Veteran with Plasma Rifle Performance ------------- Evolutions (6) 3000 Regions Visited (11) 2200 Robots Destroyed (133) 665 Value Destroyed (5477) 5477 Prototype IDs (6) 120 Alien Tech Used (0) 0 Bonus (2792) 2792 TOTAL SCORE: 14254 Bonus ------- High Alert Combat Kills 374 Follower Combat Kills 364 Entered Garrisons 600 Used RIF Installer 1500 Friendly Fire -46 Cogmind --------- Core Integrity 0/1150 Matter 190/300 Energy 85/100 System Corruption 18% Temperature Cool (0) Movement Core (50) Location -4/Garrison Parts ------- > --- POWER (2) -------- (None) > --- PROPULSION (4) --- (None) > --- UTILITY (11) ----- Relay Coupler [Specialist] (26) Relay Coupler [Heavy] (12) > --- WEAPON (2) ------- Chainsword > --- INVENTORY (5) ---- Gyrokinetic Inverter Huge Storage Unit Relay Coupler [Swarmer] (47) Improved Remote Datajack Peak State ------------ > --- POWER ------------ Light Fission Core Neutrino Core > --- PROPULSION ------- Improved Heavy Treads Improved Heavy Treads > --- UTILITY ---------- Advanced Heat Sink Huge Storage Unit Advanced Visual Processing Unit Advanced Sensor Array Core Analyzer Improved Cloaking Device Improved Medium Armor Plating Improved Thermal Defense Suite EM Disruption Field Improved Hacking Suite High-powered Tractor Beam > --- WEAPON ----------- Quantum Rifle Quantum Rifle > --- INVENTORY -------- Light Nuclear Core Antigrav System Antigrav System Antigrav System Gyrokinetic Inverter Small Storage Unit Compact Matter Pod Improved Sensor Array Hardened Medium Armor Plating Energy Mantle Energy Mantle Relay Coupler [Grunt] Relay Coupler [Heavy] Relay Coupler [Behemoth] Advanced Drone Bay Disruptor Cannon Flak Gun Enhanced Gauss Cannon Improved Datajack Improved Remote Datajack Mining Laser Improved Plasma Cutter Chainsword [Rating: 115] Favorites ----------- Power Light Nuclear Core Engine Improved Deuterium Engine Power Core Light Nuclear Core Reactor Light Antimatter Reactor Propulsion Improved Heavy Treads Treads Improved Heavy Treads Leg Flexi-carbon Leg Wheel Wheel Hover Unit Gravmag System Flight Unit Nuclear Pulse Thruster Utility Improved Hacking Suite Device Advanced Heat Sink Storage Medium Storage Unit Processor Improved Signal Interpreter Hackware Improved Hacking Suite Protection Improved Medium Armor Plating Weapon Chainsword Energy Gun Quantum Rifle Energy Cannon Disruptor Cannon Ballistic Gun Autogun Ballistic Cannon Enhanced Gauss Cannon Launcher Grenade Launcher Special Weapon Improved Remote Datajack Impact Weapon Powered Hammer Slashing Weapon Chainsword Special Melee Weapon Improved Datajack Build | -11 -10 -9 -9 -8 -7 -7 -6 -6 -5 -4 -4 ------- Run | Yrd Mat Mat Min Mat Fac Gar Fac Gar Fac Fac Gar Slots Evolved 12 | . . 2 . 2 2 . 2 . 2 2 . Power 1 | . . . . . . . 1 . . . . Propulsion 2 | . . 1 . 1 . . . . . . . Utility 9 | . . 1 . 1 2 . 1 . 2 2 . Weapon . | . . . . . . . . . . . . Parts Attached 297 | 8 11 48 7 21 11 16 38 38 22 17 60 Power 36 | 1 . 7 1 . 1 3 7 5 3 . 8 Engine 15 | 1 . 7 . . . 1 2 3 1 . . Core 17 | . . . 1 . 1 2 3 2 2 . 6 Reactor 4 | . . . . . . . 2 . . . 2 Propulsion 59 | 2 2 10 1 5 6 1 12 6 . . 14 Treads 8 | . . . . . . . . 4 . . 4 Leg 9 | . . 4 . . . . 1 . . . 4 Wheel 8 | 2 . . . . . . 4 1 . . 1 Hover 32 | . 2 6 1 5 6 1 5 1 . . 5 Flight 2 | . . . . . . . 2 . . . . Utility 81 | 2 6 13 1 5 3 1 8 12 5 9 16 Device 35 | 1 2 5 1 2 3 . 2 5 3 6 5 Storage 18 | 1 2 7 . 1 . . 2 3 . 1 1 Processor 8 | . 1 . . 1 . 1 . 2 1 . 2 Hackware 10 | . . . . 1 . . 4 . 1 . 4 Protection 10 | . 1 1 . . . . . 2 . 2 4 Artifact . | . . . . . . . . . . . . Weapon 121 | 3 3 18 4 11 1 11 11 15 14 8 22 Energy Gun 42 | 3 3 14 2 . . . . 3 3 3 11 Energy Cannon 1 | . . . . . . . . . 1 . . Ballistic Gun 7 | . . . . . . . . 5 2 . . Ballistic Cannon 13 | . . 1 . . . . . . 5 2 5 Launcher 10 | . . 1 2 2 . 4 . 1 . . . Special Weapon 5 | . . . . . . . . . 1 2 2 Impact Weapon 13 | . . . . 4 1 2 3 3 . . . Slashing Weapon 21 | . . 2 . 5 . 2 5 2 1 1 3 Piercing Weapon . | . . . . . . . . . . . . Special Melee Weapon 9 | . . . . . . 3 3 1 1 . 1 Unidentified Prototypes 6 | . . 2 . . . . 1 1 1 1 . Corrupted Parts 2 | . . . . . . . . . . . 2 System Corruption 13 | . . . . . . . . . . . 13 Parts Lost 79 | . . 5 . 1 5 3 13 13 1 1 37 Power 12 | . . . . . . 1 3 3 . . 5 Propulsion 36 | . . 2 . 1 4 2 7 5 . . 15 Utility 16 | . . . . . 1 . 3 2 1 1 8 Weapon 15 | . . 3 . . . . . 3 . . 9 Highest Loss Streak 11 | . . 3 . 1 5 1 9 5 1 1 11 To Critical Strikes . | . . . . . . . . . . . . Average Slot Usage (%) 79 | . 97 93 99 99 90 95 82 63 74 79 58 Engine 2 | . 14 11 5 . . 2 . 2 3 . . Core 5 | . . . 4 9 7 5 9 3 6 10 4 Treads 3 | . . . . . . . . 6 11 10 4 Leg 1 | . . 6 . . . . . . . . 4 Wheel 1 | . 12 . . . . . 6 . . . . Hover 11 | . 15 22 33 35 25 25 11 . . . 1 Device 10 | . 6 6 11 17 18 21 8 4 10 17 13 Storage 7 | . 14 11 11 9 7 7 6 8 5 5 2 Processor 8 | . . 11 11 9 7 8 10 3 12 10 6 Hackware 8 | . . . . . 7 7 13 17 9 7 4 Protection 1 | . 5 3 . . . . . . . 6 3 Energy Gun 5 | . 28 19 19 . . . . 3 2 5 4 Ballistic Cannon 1 | . . . . . . . . . 6 3 2 Impact Weapon 1 | . . . . 6 7 6 1 1 . . . Slashing Weapon 3 | . . . . 10 7 3 10 3 . . . Peak Build Rating 115 | 7 7 17 18 31 42 42 52 84 98 115 114 Average Rating 47 | 4 6 12 16 27 37 39 37 49 90 104 66 On Entrance 41 | . 7 7 17 18 31 42 40 47 83 97 113 Naked Turns 15 | . . . . . . . . . . . 15 Heaviest Build 207 | 13 28 90 19 26 24 24 32 179 198 207 134 Greatest Support 162 | 26 26 30 20 29 42 42 33 162 150 150 150 Greatest Overweight (x) 11 | . 2 4 . 1 7 . 9 4 1 1 11 Average Overweight (x) . | . . . . . . . 1 1 1 . . Largest Inventory Capacity 30 | 8 15 25 8 10 10 10 10 30 30 30 25 Average Capacity 15 | 7 10 9 8 9 10 10 9 18 30 26 14 Most Carried 25 | 1 7 13 8 10 10 10 10 19 24 25 25 Average Carried 11 | . 5 7 7 9 9 9 8 9 20 22 12 Final Capacity 30 | 8 8 8 8 10 10 10 8 30 30 25 5 Final Carried 24 | 1 7 8 8 10 10 10 7 19 23 24 4 Class Distribution -------------------- 34% | Scavenger-Mutant 31% | Mutant 10% | Bothacker-Mutant 9% | Scavenger-Gladiator 8% | Hacker-Mutant Dominant Class ---------------- Mutant | -10/Materials Mutant | -9/Materials Mutant | -9/Mines Scavenger-Mutant | -8/Materials Mutant | -7/Factory Mutant | -7/Garrison Scavenger-Gladiator | -6/Factory Hacker-Mutant | -6/Garrison Scavenger-Mutant | -5/Factory Scavenger-Mutant | -4/Factory Bothacker-Mutant | -4/Garrison Resources | -11 -10 -9 -9 -8 -7 -7 -6 -6 -5 -4 -4 ----------- Run | Yrd Mat Mat Min Mat Fac Gar Fac Gar Fac Fac Gar Matter Collected 4604 | 194 186 567 152 111 91 345 419 566 639 295 1039 Remotely 638 | . . . . . . . . . . 295 343 Salvage Created 5626 | 112 186 1065 151 169 122 260 693 1404 563 301 600 Parts 243 | 5 12 55 15 9 . 21 26 38 32 16 14 Haulers Intercepted 4 | . . 3 . . . . . . 1 . . Recyclers Shooed 7 | 1 . . . . 1 . 1 . 2 2 . Parts Field Recycled . | . . . . . . . . . . . . Retrieved Matter . | . . . . . . . . . . . . Parts Self-Destructed . | . . . . . . . . . . . . Prevented . | . . . . . . . . . . . . Kills | -11 -10 -9 -9 -8 -7 -7 -6 -6 -5 -4 -4 ------- Run | Yrd Mat Mat Min Mat Fac Gar Fac Gar Fac Fac Gar Combat Hostiles Destroyed 94 | . 4 16 9 4 1 15 6 17 10 1 11 Melee 16 | . . . . 2 . 5 5 4 . . . Guns 32 | . 3 13 3 . . . . 7 2 . 4 Cannons 16 | . . . . . . . . . 8 1 7 AOE 22 | . . 2 6 2 . 10 . 2 . . . Classes Destroyed 15 | 2 2 6 1 . . . 2 1 . . 1 Worker 8 | . . 4 . 1 . . 2 . . 1 . Builder 6 | . . 1 1 . . . 4 . . . . Tunneler 3 | 1 . . . 1 . . 1 . . . . Hauler 4 | . . 3 . . . . . . 1 . . Recycler 7 | 1 . 1 . . 1 . 1 . 1 2 . Mechanic 1 | . . . . . . . 1 . . . . Operator 2 | . . 1 . . . . 1 . . . . Watcher 8 | . 2 1 . 1 1 . 2 . . 1 . Swarmer 29 | . . . 6 2 . 10 . 6 5 . . Grunt 40 | . 4 9 3 . . 5 4 6 1 . 8 Brawler 1 | . . 1 . . . . . . . . . Sentry 13 | . . 6 . 2 1 . . 2 2 . . Specialist 2 | . . . . . . . . 2 . . . Programmer 8 | . . . . . . . 2 1 2 1 2 Behemoth 1 | . . . . . . . . . . . 1 Best Kill Streak 8 | 2 2 8 4 2 1 4 3 4 4 3 3 Combat Bots Only 4 | . 2 4 3 2 1 4 2 4 4 1 3 Max Kills in Single Turn 3 | 1 1 1 2 1 1 3 1 1 2 1 2 Gunslinging . | . . . . . . . . . . . . Exploded 3 | . . 1 2 1 . 3 . 1 . . . Melee 1 | . . . . 1 . 1 1 1 . . . Uniques/NPCs Destroyed . | . . . . . . . . . . . . Combat | -11 -10 -9 -9 -8 -7 -7 -6 -6 -5 -4 -4 -------- Run | Yrd Mat Mat Min Mat Fac Gar Fac Gar Fac Fac Gar Hostile Shots Fired 1013 | . 15 81 19 19 54 46 74 225 44 3 433 Missed 309 | . 4 29 6 7 27 16 13 65 10 2 130 Damage Taken 12526 | . 133 887 125 180 302 511 999 2310 867 34 6178 Core 2541 | . 22 211 9 47 123 148 236 493 84 . 1168 Absorbed by Shields 167 | . . . . . . . . 51 . . 116 Reduced by Siege Mode 54 | . . . . . . . . 20 34 . . Redirected to Shielding 34 | . 11 23 . . . . . . . . . Ignored by Resistances 462 | . . . . . . . . . 43 6 413 Regen/Repaired (Parts) 445 | . . 20 . . . . . . 425 . . Core Remaining (%) 70 | 100 91 . 45 91 . 61 . 14 91 . . Volleys Fired 298 | 3 20 57 13 2 . 14 . 46 40 20 83 Largest 2 | 2 2 2 2 2 . 1 . 2 2 2 2 Hottest 188 | 80 100 130 112 66 . 30 . 188 151 188 151 Shots Fired 489 | 6 40 112 18 4 . 14 . 59 64 37 135 Gun 308 | 6 40 99 11 . . . . 51 17 23 61 Cannon 132 | . . 7 . . . . . . 46 13 66 Launcher 39 | . . 6 7 4 . 14 . 8 . . . Special 10 | . . . . . . . . . 1 1 8 Kinetic 164 | . . 7 . . . . . 27 51 13 66 Thermal 237 | . 40 66 11 . . . . 24 12 23 61 Explosive 39 | . . 6 7 4 . 14 . 8 . . . Electromagnetic 40 | 6 . 33 . . . . . . 1 . . Robot Hit Streak 20 | 5 11 18 3 2 . 3 . 20 11 8 13 Robot Miss Streak 6 | . 5 4 3 . . 1 . 4 6 3 3 Penetration Max . | . . . . . . . . . . . . Secondary Targets 3 | . . 1 . . . . . 1 1 . . Max Gunslinging Chain 1 | . . 1 . . . . . 1 1 . . Shots Hit Robots 459 | 5 26 86 6 14 12 9 49 101 39 19 93 Core Hits 218 | 3 9 45 12 6 . 26 14 37 22 10 34 Critical Kills 3 | . . . . 1 . . . 2 . . . Critical Parts Destroyed 12 | . . . . . 2 1 3 6 . . . Critical Strikes 49 | . 7 3 . 3 3 1 7 12 2 1 10 Burn 16 | . 7 2 . . . . . . . . 7 Destroy 1 | . . . . . . . . 1 . . . Blast 7 | . . 1 . . . . . . 2 1 3 Smash 14 | . . . . 1 2 1 3 7 . . . Sever 11 | . . . . 2 1 . 4 4 . . . Melee Attacks 283 | . . 4 . 37 32 22 89 84 3 . 12 Impact 125 | . . . . 15 26 20 33 31 . . . Slashing 146 | . . 4 . 22 6 2 54 49 1 . 8 Piercing . | . . . . . . . . . . . . Sneak Attacks 27 | . . . . 2 2 . 13 4 2 . 4 Combat Hostiles . | . . . . . . . . . . . . Follow-up Attacks 15 | . . . . 1 3 . 5 6 . . . Damage Inflicted 16466 | 67 353 1731 466 635 525 1337 2431 4562 1190 721 2448 Guns 4020 | 67 353 1199 85 . . . . 819 313 316 868 Cannons 2778 | . . 89 . . . . . . 862 266 1561 Explosions 2719 | . . 443 381 104 . 1012 . 657 . 122 . Melee 6887 | . . . . 531 525 325 2431 3075 . . . Ramming 62 | . . . . . . . . 11 15 17 19 Kinetic 3106 | . . 89 . . . . . 273 917 266 1561 Thermal 3379 | . 353 956 85 . . . . 546 255 316 868 Explosive 2538 | . . 262 381 104 . 1012 . 657 . 122 . Electromagnetic 494 | 67 . 424 . . . . . . 3 . . Impact 2576 | . . . . 179 464 325 945 663 . . . Slashing 4311 | . . . . 352 61 . 1486 2412 . . . Piercing . | . . . . . . . . . . . . Highest Corruption 18 | . . 3 3 . . . 3 6 5 5 18 Average Corruption 4 | . . 2 3 . . . 1 5 5 5 5 Corruption Purged . | . . . . . . . . . . . . Corruption Blocked . | . . . . . . . . . . . . Effects 133 | . . 7 8 . . . 11 45 31 3 28 Message Errors 37 | . . 2 3 . . . 5 10 8 1 8 Matter Fused 32 | . . 1 2 . . . 3 13 10 . 3 Heat Flow Errors 16 | . . 2 1 . . . . 7 2 . 4 Energy Discharges 8 | . . . . . . . . 4 2 . 2 Parts Rejected 3 | . . . . . . . . . 1 . 2 Parts Fused 1 | . . . . . . . . . 1 . . Data Loss (minor) 14 | . . . 1 . . . 1 5 4 . 3 Data Loss (major) 8 | . . 1 . . . . 1 1 2 . 3 Misfires 7 | . . 1 . . . . . 2 . 2 2 Alerts 5 | . . . 1 . . . 1 2 . . 1 Weapon Failures 2 | . . . . . . . . 1 1 . . Overload Shots . | . . . . . . . . . . . . Overflow Damage 1447 | . . 28 33 78 210 84 603 361 25 25 . Projectiles 39 | . . . . . . . . . 25 14 . Explosions 120 | . . 28 33 1 . 38 . 9 . 11 . Melee 1288 | . . . . 77 210 46 603 352 . . . Knockbacks 22 | . . . . . 2 2 4 2 2 2 8 Impact 11 | . . . . . 2 2 4 2 . . 1 Kinetic 11 | . . . . . . . . . 2 2 7 Secondary . | . . . . . . . . . . . . Self-Inflicted Damage 279 | . . 143 10 7 . 61 . 26 15 17 . Shots 10 | . . 4 1 1 . 3 . 1 . . . Rammed 1 | . . . . . . . . 1 . . . Targets Rammed 6 | . . . . . . . . 1 . . 5 Kicked 5 | . . . . . . . . . . . 5 Crushed . | . . . . . . . . . . . . Highest Temperature 548 | 36 306 495 237 3 . 10 7 239 243 254 548 Average Temperature 116 | 17 142 138 85 3 . 3 7 67 64 94 159 Received Heat Transfer 2810 | . 75 318 21 81 60 126 309 256 81 . 1483 Effects 20 | . 1 8 . . . . . . . 1 10 Shutdowns 7 | . . 4 . . . . . . . . 3 Energy Bleed 4 | . . 2 . . . . . . . 1 1 Short Circuit 3 | . 1 1 . . . . . . . . 1 Damage (minor) 2 | . . 1 . . . . . . . . 1 Damage (major) 3 | . . . . . . . . . . . 3 Damage (core) 1 | . . . . . . . . . . . 1 Siege Activations 6 | . . . . . . . . 1 5 . . Total Turns 54 | . . . . . . . . 12 42 . . Longest Duration 12 | . . . . . . . . 12 11 . . Robots Corrupted 11 | . . . . . 3 . 4 4 . . . Combat Hostiles 6 | . . . . . 1 . 1 4 . . . Parts Fried 26 | 1 . 1 . 5 2 1 10 6 . . . Impact Corruptions 37 | . . . . 1 7 1 15 13 . . . Robots Melted 2 | . 1 1 . . . . . . . . . Combat Hostiles 2 | . 1 1 . . . . . . . . . Parts Melted 18 | . 5 9 . . . . . 1 . . 3 Heat Transferred 7954 | . 1554 2198 185 . . . . 703 333 407 2574 Parts Sabotaged . | . . . . . . . . . . . . Parts Stolen . | . . . . . . . . . . . . Parts Stripped . | . . . . . . . . . . . . Power Chain Reactions 1 | . . 1 . . . . . . . . . Alert | -11 -10 -9 -9 -8 -7 -7 -6 -6 -5 -4 -4 ------- Run | Yrd Mat Mat Min Mat Fac Gar Fac Gar Fac Fac Gar Peak Influence 860 | 10 171 546 448 270 117 657 413 860 667 484 411 Initial 451 | . 6 72 212 96 66 81 344 114 451 273 331 Average 341 | 2 50 324 303 139 94 348 265 535 460 371 367 Maximum Alert Level 3 | . . 2 2 1 . 2 2 3 2 2 2 Low Security (%) 24 | 100 100 18 . 83 100 28 33 8 . . . Level 1 40 | . . 48 85 16 . 35 57 7 28 62 74 Level 2 32 | . . 33 14 . . 35 9 63 71 37 25 Level 3 3 | . . . . . . . . 20 . . . Level 4 . | . . . . . . . . . . . . Level 5 . | . . . . . . . . . . . . High Security . | . . . . . . . . . . . . Max Security . | . . . . . . . . . . . . Squads Dispatched 18 | . 2 2 . 2 1 . 6 . 3 2 . Investigation 5 | . 2 . . 2 . . 1 . . . . Extermination 6 | . . . . . . . 3 . 2 1 . Reinforcement 6 | . . 2 . . 1 . 2 . 1 . . Assault 1 | . . . . . . . . . . 1 . Garrison . | . . . . . . . . . . . . Intercept . | . . . . . . . . . . . . Searches Triggered . | . . . . . . . . . . . . Construction Impeded . | . . . . . . . . . . . . Haulers Reinforced 2 | . . . . . . . 1 . 1 . . Active Scanning Responses . | . . . . . . . . . . . . Cargo Convoy Interrupts . | . . . . . . . . . . . . Stealth | -11 -10 -9 -9 -8 -7 -7 -6 -6 -5 -4 -4 --------- Run | Yrd Mat Mat Min Mat Fac Gar Fac Gar Fac Fac Gar Distress Signals 3 | . . 2 . 1 . . . . . . . Communications Jammed 1 | . . . . . . . 1 . . . . Distress Signals 1 | . . . . . . . 1 . . . . Times Spotted 167 | . 7 24 9 8 6 17 25 23 17 6 25 Peak Tracking Total 9 | . 2 6 3 3 3 9 7 5 5 4 6 Tactical Retreats 24 | . 1 3 . 2 . 4 5 5 . . 4 Traps | -11 -10 -9 -9 -8 -7 -7 -6 -6 -5 -4 -4 ------- Run | Yrd Mat Mat Min Mat Fac Gar Fac Gar Fac Fac Gar Traps Triggered 19 | . 1 2 . 1 2 . 2 8 3 . . Indirectly . | . . . . . . . . . . . . Trap Hack Attempts 55 | . . . . . . 55 . . . . . Triggered . | . . . . . . . . . . . . Disarmed . | . . . . . . . . . . . . Reprogrammed 7 | . . . . . . 7 . . . . . Reused 3 | . . . . . . 3 . . . . . Traps Extracted . | . . . . . . . . . . . . Installed . | . . . . . . . . . . . . Triggered 3 | . . . . . . 3 . . . . . Machines | -11 -10 -9 -9 -8 -7 -7 -6 -6 -5 -4 -4 ---------- Run | Yrd Mat Mat Min Mat Fac Gar Fac Gar Fac Fac Gar Machines Disabled 13 | . . 3 . . . 1 1 5 . 2 1 Max in Single Turn 2 | . . 1 . . . 1 1 1 . 2 1 Garrison Relay 5 | . . . . . . 1 . 3 . . 1 Machines Repaired . | . . . . . . . . . . . . Machines Dismantled . | . . . . . . . . . . . . Machines Sabotaged . | . . . . . . . . . . . . Overloaded Fab Kills . | . . . . . . . . . . . . Hacking | -11 -10 -9 -9 -8 -7 -7 -6 -6 -5 -4 -4 --------- Run | Yrd Mat Mat Min Mat Fac Gar Fac Gar Fac Fac Gar Machines Accessed 35 | . 6 2 . 8 4 1 8 1 3 2 . Terminals 25 | . 5 1 . 7 2 1 6 1 2 . . Fabricators 1 | . . . . . . . . . 1 . . Repair Stations 2 | . . 1 . . . . . . . 1 . Recycling Units 4 | . 1 . . 1 1 . 1 . . . . Scanalyzers . | . . . . . . . . . . . . Garrison Access 3 | . . . . . 1 . 1 . . 1 . Total Hacks 83 | . 14 4 . 25 10 1 17 2 8 2 . Successful 44 | . 6 3 . 10 7 1 13 . 3 1 . Failed 39 | . 8 1 . 15 3 . 4 2 5 1 . Catastrophic 5 | . 1 . . . . . 1 1 2 . . Database Lockouts . | . . . . . . . . . . . . Manual 64 | . 12 2 . 21 8 1 12 2 6 . . Terminals 63 | . 10 2 . 22 7 1 13 2 6 . . Fabricators 2 | . . . . . . . . . 2 . . Repair Stations 3 | . . 2 . . . . . . . 1 . Recycling Units 12 | . 4 . . 3 2 . 3 . . . . Scanalyzers . | . . . . . . . . . . . . Garrison Access 3 | . . . . . 1 . 1 . . 1 . Terminal Hacks 3 | . . . . . . 1 2 . . . . Record 1 | . . . . . . . 1 . . . . Open Door 1 | . . . . . . . 1 . . . . Garrison Registry 1 | . . . . . . 1 . . . . . Fabricator Hacks 1 | . . . . . . . . . 1 . . Network Status 1 | . . . . . . . . . 1 . . Repair Station Hacks 2 | . . 2 . . . . . . . . . Scan Component 1 | . . 1 . . . . . . . . . Repair 1 | . . 1 . . . . . . . . . Recycling Unit Hacks 8 | . 2 . . 2 1 . 3 . . . . Report Inventory 5 | . 1 . . 1 1 . 2 . . . . Retrieve Components 3 | . 1 . . 1 . . 1 . . . . Scanalyzer . | . . . . . . . . . . . . Garrison Access Hacks 3 | . . . . . 1 . 1 . . 1 . Unlock Access 3 | . . . . . 1 . 1 . . 1 . Unauthorized Hacks 27 | . 4 1 . 8 5 . 7 . 2 . . Terminals 24 | . 3 1 . 7 4 . 7 . 2 . . Track 2 | . . . . . 1 . 1 . . . . Assimilate 1 | . . . . . . . 1 . . . . Botnet 17 | . 2 1 . 6 2 . 4 . 2 . . Operators 4 | . 1 . . 1 1 . 1 . . . . Fabricators . | . . . . . . . . . . . . Repair Stations . | . . . . . . . . . . . . Recycling Units 3 | . 1 . . 1 1 . . . . . . Reject 3 | . 1 . . 1 1 . . . . . . Scanalyzers . | . . . . . . . . . . . . Garrison Access . | . . . . . . . . . . . . Data Cores Recovered . | . . . . . . . . . . . . Used . | . . . . . . . . . . . . Hacking Detections 26 | . 4 1 . 7 2 . 7 1 3 1 . Full Trace Events 3 | . 1 . . 1 . . 1 . . . . Feedback Events 1 | . . . . . . . 1 . . . . Corruption 1 | . . . . . . . 1 . . . . Feedback Blocked . | . . . . . . . . . . . . Robot Schematics Acquired . | . . . . . . . . . . . . Robots Built . | . . . . . . . . . . . . Authchips . | . . . . . . . . . . . . Time . | . . . . . . . . . . . . Total Robot Build Rating . | . . . . . . . . . . . . Part Schematics Acquired . | . . . . . . . . . . . . Parts Built . | . . . . . . . . . . . . Authchips . | . . . . . . . . . . . . Time . | . . . . . . . . . . . . Total Part Build Rating . | . . . . . . . . . . . . Parts Repaired 1 | . . 1 . . . . . . . . . Time 26 | . . 26 . . . . . . . . . Parts Recycled . | . . . . . . . . . . . . Recycled Matter . | . . . . . . . . . . . . Retrieved Matter . | . . . . . . . . . . . . Retrieved Components 17 | . 2 . . 5 . . 10 . . . . Parts Scanalyzed . | . . . . . . . . . . . . Part Schematics Acquired . | . . . . . . . . . . . . Parts Damaged . | . . . . . . . . . . . . Bothacking | -11 -10 -9 -9 -8 -7 -7 -6 -6 -5 -4 -4 ------------ Run | Yrd Mat Mat Min Mat Fac Gar Fac Gar Fac Fac Gar Used RIF Installer 3 | . . . . . . 2 . 1 . . . Signal Jammer 1 | . . . . . . 1 . . . . . Zone Cloak 1 | . . . . . . . . 1 . . . Robots Hacked 6 | . . . . . . . 2 . 1 1 2 Non-combat 3 | . . . . . . . 1 . 1 1 . Combat 3 | . . . . . . . 1 . . . 2 Robot Hacks Applied 6 | . . . . . . . 2 . 1 1 2 no_distress 1 | . . . . . . . . . . 1 . map_walls 1 | . . . . . . . 1 . . . . formatsys_low 1 | . . . . . . . . . 1 . . formatsys_high 3 | . . . . . . . 1 . . . 2 Relay Couplers Released 20 | . . . . . . 5 . 12 . . 3 Machine Destruction 20 | . . . . . . 5 . 12 . . 3 Attached 7 | . . . . . . . 2 . 1 . 4 Fabnet Peak Effective % . | . . . . . . . . . . . . Robots Rewired 7 | . . . . . . . . 4 . . 3 Allies Hacked 2 | . . . . . . . . . . . 2 Hacks Repelled . | . . . . . . . . . . . . Allies | -11 -10 -9 -9 -8 -7 -7 -6 -6 -5 -4 -4 -------- Run | Yrd Mat Mat Min Mat Fac Gar Fac Gar Fac Fac Gar Total Allies 13 | . . . 1 . . . 2 4 1 . 5 Largest Group 5 | . . . 1 1 . . 1 4 4 1 5 Highest-Rated Group 184 | . . . 31 31 . . 32 164 163 22 184 Highest-Rated Ally 47 | . . . 31 31 . . 32 41 41 22 47 Total Orders 17 | . . . . . . . . . 11 6 . AID 5 | . . . . . . . . . 5 . . EXPLORE 6 | . . . . . . . . . 3 3 . RETURN 6 | . . . . . . . . . 3 3 . Ally Attacks 67 | . . . . . . . 6 . 50 . 11 Total Damage 1617 | . . . . . . . 263 . 1010 . 344 Kills 10 | . . . . . . . 1 . 8 . 1 Allies Corrupted . | . . . . . . . . . . . . Allies Melted . | . . . . . . . . . . . . Intel | -11 -10 -9 -9 -8 -7 -7 -6 -6 -5 -4 -4 ------- Run | Yrd Mat Mat Min Mat Fac Gar Fac Gar Fac Fac Gar Robot Analysis Total . | . . . . . . . . . . . . Derelict Logs Recovered 2 | . . . 2 . . . . . . . . Drone Launches 6 | . . . . . . . . . 4 2 . Drone Recoveries 6 | . . . . . . . . . 4 2 . Exploration | -11 -10 -9 -9 -8 -7 -7 -6 -6 -5 -4 -4 ------------- Run | Yrd Mat Mat Min Mat Fac Gar Fac Gar Fac Fac Gar Turns Passed 9086 | 60 338 757 601 547 359 347 1796 1510 1303 331 1137 Spaces Moved 5755 | 43 281 598 726 492 422 311 1165 641 418 118 540 Core 210 | 3 . . . . 9 . 44 100 . . 54 Treads 1014 | . . . . . . . . 261 418 118 217 Legs 276 | . . 71 . . . . . . . . 205 Wheels 865 | 40 120 . . . . . 651 46 . . 8 Hover 3196 | . 161 527 726 492 413 311 429 81 . . 56 Flight 194 | . . . . . . . 41 153 . . . Fastest Speed 37 | 50 56 52 52 48 48 48 37 37 240 160 50 Average Speed 103 | 88 88 67 52 48 55 50 110 160 240 178 138 Slowest Speed 510 | 100 185 292 52 112 400 52 500 320 240 240 510 Overloaded Moves . | . . . . . . . . . . . . Propulsion Burnouts . | . . . . . . . . . . . . Robots Hopped . | . . . . . . . . . . . . Cave-ins Triggered 1 | . . . . . . . . . 1 . . Exploration Rate (%) 32 | 4 47 37 89 41 14 46 14 47 14 8 33 Regions Visited 11 Branch Regions 1 Pre-discovered Areas . | . . . . . . . . . . . . Known Exits Taken 7 | . 1 1 1 1 1 . 1 . . 1 . Unknown Exits Taken 2 | 1 . . . . . . . . 1 . . Scrap Searched 2 | . . . 2 . . . . . . . . Spaces Dug 67 | . . 1 . 16 13 5 20 4 4 1 3 Terrain Destroyed 301 | . . 58 26 52 13 31 20 21 20 48 12 Melee 61 | . . 1 . 16 13 3 20 4 1 . 3 Projectile 44 | . . . . . . . . . 19 16 9 AOE 196 | . . 57 26 36 . 28 . 17 . 32 . Terrain Rammed 2 | . . . . . . . . . 1 1 . Walls Destroyed . | . . . . . . . . . . . . Machines Disabled . | . . . . . . . . . . . . Actions | -11 -10 -9 -9 -8 -7 -7 -6 -6 -5 -4 -4 --------- Run | Yrd Mat Mat Min Mat Fac Gar Fac Gar Fac Fac Gar Total 7944 | 55 328 829 930 751 508 445 1535 947 646 199 771 Wait 976 | . . 70 175 191 32 24 233 30 139 32 50 Move 5747 | 42 280 597 725 491 422 310 1165 640 417 118 540 Hop . | . . . . . . . . . . . . Pick Up 94 | 1 7 22 4 7 6 3 7 10 12 5 10 Fast Attach 115 | 8 7 9 1 3 6 1 14 20 6 5 35 Attach 52 | . 1 11 . 3 1 1 7 8 2 4 14 Detach 15 | . 1 2 . . . . 2 6 3 1 . Swap 130 | . 3 28 6 15 4 14 17 10 14 8 11 Drop 106 | 1 9 29 6 8 7 3 10 8 9 5 11 Fire 298 | 3 20 57 13 2 . 14 . 46 40 20 83 Melee 251 | . . 4 . 31 26 20 80 75 3 . 12 Ram 2 | . . . . . . . . . 1 1 . Kick 5 | . . . . . . . . . . . 5 Crush . | . . . . . . . . . . . . Escape Stasis 98 | . . . . . 4 . . 94 . . . Rewire . | . . . . . . . . . . . . Trap 55 | . . . . . . 55 . . . . . Miscellaneous . | . . . . . . . . . . . . Route ------- -11/Scrapyard -10/Materials (discovered 2 exits: *Mat x2) -9/Materials (discovered 2 exits: *Min / [*Sto]) -9/Mines (discovered 2 exits: *Mat x2) -8/Materials -7/Factory -7/Garrison (discovered 3 exits: *Fac x3) -6/Factory (discovered 2 exits: *Ext / Gar) -6/Garrison -5/Factory -4/Factory -4/Garrison History --------- Turn | Location | Event 6 | -11/Scrapyard | Discovered new exit (range 16) 61 | -11/Scrapyard | Entered Materials 159 | -10/Materials | Discovered new exit (range 9) 255 | -10/Materials | Discovered new exit (range 16) 315 | -10/Materials | Build established: Mutant 398 | -10/Materials | Identified exit to Materials 399 | -10/Materials | Entered another Materials area 399 | -9/Materials | Evolved 2 slots: Propulsion x1, Utility x1 480 | -9/Materials | Repaired Hover Unit 485 | -9/Materials | Discovered new exit (range 13) 572 | -9/Materials | Lost 3 parts (1n2w) 1058 | -9/Materials | Discovered new exit (range 12) 1099 | -9/Materials | Core integrity fell below 50% 1156 | -9/Materials | Identified exit to Mines 1156 | -9/Materials | Entered Mines 1277 | -9/Mines | A weapon hastily lodged in a ceiling crevice suddenly fell to the ground 1498 | -9/Mines | Discovered new exit (range 10) 1507 | -9/Mines | Identified exit to Materials 1530 | -9/Mines | Learned Materials emergency access door positions 1531 | -9/Mines | Discovered exit to Materials (range 4) 1582 | -9/Mines | Received a Mining Laser from a helpful Derelict 1757 | -9/Mines | Entered Materials 1757 | -8/Materials | Accompanied by 1 ally 1757 | -8/Materials | Evolved 2 slots: Propulsion x1, Utility x1 1758 | -8/Materials | Identified exit to Factory 2173 | -8/Materials | Build established: Scavenger-Mutant 2304 | -8/Materials | Entered Factory 2304 | -7/Factory | Evolved 2 slots: Utility x2 2372 | -7/Factory | Lost 5 parts (4n1u) 2637 | -7/Factory | Build established: Mutant 2663 | -7/Factory | Identified exit to Garrison 2663 | -7/Factory | Entered Garrison 2691 | -7/Garrison | Discovered new exit (range 30) 2691 | -7/Garrison | Discovered new exit (range 53) 2691 | -7/Garrison | Discovered new exit (range 44) 2749 | -7/Garrison | Triggered checkpoint 2837 | -7/Garrison | Installed Relay Interface Framework 3006 | -7/Garrison | Expanded RIF knowledge: Signal Jamming 3010 | -7/Garrison | Identified exit to Factory 3010 | -7/Garrison | Entered Factory 3010 | -6/Factory | Evolved 2 slots: Power x1, Utility x1 3739 | -6/Factory | Build established: Scavenger-Gladiator 3858 | -6/Factory | Discovered new exit (range 6) 3861 | -6/Factory | Identified exit to Extension 4219 | -6/Factory | Lost 9 parts (2p4n3u) 4484 | -6/Factory | Build established: Mutant 4806 | -6/Factory | Identified exit to Garrison 4806 | -6/Factory | Entered Garrison 4810 | -6/Garrison | Expanded RIF knowledge: Zone Cloak 4834 | -6/Garrison | Triggered checkpoint 4904 | -6/Garrison | Garrison Relay disabled 5051 | -6/Garrison | Build established: Hacker-Mutant 5094 | -6/Garrison | Core integrity fell below 50% 5096 | -6/Garrison | Lost 3 parts (2n1u) 5200 | -6/Garrison | Discovered new exit (range 10) 5210 | -6/Garrison | Identified exit to Factory 5228 | -6/Garrison | Triggered checkpoint 5450 | -6/Garrison | Garrison Relay disabled 5705 | -6/Garrison | Lost 5 parts (2p1n1u1w) 6087 | -6/Garrison | Triggered checkpoint 6108 | -6/Garrison | Build established: Scavenger-Mutant 6149 | -6/Garrison | Core integrity fell below 20% 6150 | -6/Garrison | Triggered checkpoint 6220 | -6/Garrison | Garrison Relay disabled 6316 | -6/Garrison | Entered Factory 6316 | -5/Factory | Accompanied by 4 allies 6316 | -5/Factory | Evolved 2 slots: Utility x2 6602 | -5/Factory | Spotted B-75 Beast 7037 | -5/Factory | Build established: Bothacker-Mutant 7254 | -5/Factory | Discovered new exit (range 20) 7274 | -5/Factory | P-70 Sage assimilated allied Slayer 5a 7509 | -5/Factory | Crushed by falling debris 7512 | -5/Factory | Build established: Scavenger-Mutant 7619 | -5/Factory | Entered another Factory area 7619 | -4/Factory | Accompanied by 1 ally 7619 | -4/Factory | Evolved 2 slots: Utility x2 7731 | -4/Factory | Spotted B-86 Titan 7869 | -4/Factory | First assault squad dispatched 7950 | -4/Factory | Identified exit to Garrison 7950 | -4/Factory | Entered Garrison 7970 | -4/Garrison | Triggered checkpoint 8020 | -4/Garrison | Triggered checkpoint 8028 | -4/Garrison | Garrison Relay disabled 8294 | -4/Garrison | Triggered checkpoint 8294 | -4/Garrison | Spotted B-86 Titan 8304 | -4/Garrison | Triggered checkpoint 8335 | -4/Garrison | Build established: Bothacker-Mutant 8344 | -4/Garrison | Lost 5 allies 8408 | -4/Garrison | Lost 11 parts (3p2n4u2w) 8453 | -4/Garrison | Destroyed B-86 Titan 8489 | -4/Garrison | Released all parts (9) 8516 | -4/Garrison | Lost 4 parts (2n1u1w) 8575 | -4/Garrison | Released all parts (5) 8597 | -4/Garrison | Lost 3 parts (2n1w) 8598 | -4/Garrison | Triggered checkpoint 8611 | -4/Garrison | Core integrity fell below 50% 8676 | -4/Garrison | Lost 3 parts (1n2w) 8880 | -4/Garrison | Core integrity fell below 20% 8967 | -4/Garrison | Build established: Scavenger-Mutant 8990 | -4/Garrison | Released all parts (5) 9020 | -4/Garrison | Lost 8 parts (4n2u2w) 9022 | -4/Garrison | System corruption reached 10% 9087 | -4/Garrison | Destroyed by G-67 Veteran with Plasma Rifle Last Messages --------------- 09034_ C-30 ARC Arm. Wheel blasted off. 09044_ Slug penetrates C-30 ARC. 09048_ G-73 Enforcer knocked back. 09052_ Slug penetrates Wall. 09056_ Antigrav System destroyed. 09059_ System corrupted: FCS attempts to trigger Mass Driver. 09059_ System corrupted: Mass Driver misfires. 09060_ C-30 ARC destroyed. 09061_ Acquired 27 matter. 09061_ Imp. Treads destroyed. 09064_ Mass Driver destroyed. 09067_ Acquired Arm. Wheel. 09068_ Critical hit (Burn: +37). 09069_ Acquired 7 matter. 09072_ Acquired Field Laser. 09073_ Rnf. Fission Core destroyed. 09077_ Arm. Wheel destroyed. 09078_ System corrupted: IFF burst signal emitted. 09083_ Dropped Field Laser. 09083_ Acquired Chainsword. Map ----- +----------------------------------------------------+ | ??????#######???## ##????????????????????????????? | | ??????#" """#????# #?????????????????????????????? | | ??###### ####### #?????????????????????????????? | | ??# !! # #?????????????????????????????? | | ??# | "####?????????????????????????????? | | ??# ### ######????????????????????????????????? | | ??# #?# #?????????????????????????????????????? | | ??# #?#####?????????????????????????????????????? | | ??# #???????????????????????????????????????????? | | ??# #???????????????????????????????????????????? | | ??# ###?????????????????????????????????????????? | | ??# #?????????????????????????????????????????? | | ??# #?????????????????????????????????????????? | | ??# ! #?????????????????????????????????????????? | | ??#%[###?????????????????????????????????????????? | | ??#% #???????????????????????????????????????????? | | ??# %#######################?????????????????????? | | ??# % ! #?????????????????????? | | ??# !! #???????##????????????? | | ??#++######## ######### #???????#"####????????? | | ????????????# #???????# #???????# #"#????????? | | ????????????#####???????#* #???????#^^ "?????????? | | ????????????????????????# ##??????#^^ "?????????? | | ????????????????????????# ;#??????# ??????????? | | ????????????????????????# ##??????# #??????????? | | ????????????????????????#@ #?????### #??????????? | | ???????????????????????## #?????# #??????????? | | ???????????????????????#!![#?????# %#??????????? | | ???????????????????????## #?????# %##?????????? | | ???????????????????????##! #?????### "#?????????? | | ???????????????????????#! !#??????## ##?????????? | | ???????????????????????##[|##?????#" #??????????? | | ????????????????????????#[ ;#?????## #??????????? | | ????????????????????????# ;#??????# #??????????? | | ????????????????????????# ;#??????# #######????? | | ????????????????????????# ##??????#[[##% #????? | | ????????????????????????# !#??????## ## % ###"## | | ?????????????#########??# g########% [ % |% | | ????????? #% / % | | ????????? " % | | ????????????????######"##%#"######"%= "% ## # | | ?????????????????????#??#####???### % "" ## # | | ????????????????????????????????# %" " | | ????????????????????????????????# % " " | | ????????????????????????????????# %% " | | ????????????????????????????????# " | | ????????????????????????????????### ## ## # | | ??????????????????????????????????# ## ## # | | ??????????????????????????????????# # | | ??????????????????????????????????# ^^ # | +----------------------------------------------------+ Best States ------------- Heat Dissipation 81 Energy Generation 35 Energy Capacity 705 Matter Stores 300 Matter Capacity 300 Sight Range 20 Robot Scan Range 16 Terrain Scan Density 10 ECM Strength 1 Cloak Strength 3 Additional Mass Support 12 Armor Coverage 450 Resistance: TH 25 Resistance: EM 25 Propulsion Shielding 33 Evasion (%) 62 Melee Accuracy 5 Target Analysis 9 Core Analysis 6 Recoil Reduction 4 Offensive Hacking 22 Relay Coupler Types 2 Relay Coupler Value 58 Item Schematics ----------------- None Robot Schematics ------------------ None Fabricated ------------ Nothing Alien Tech Used ----------------- None Achievements -------------- None Challenges ------------ None Game ------ Seed ExpertBombStick Manual? 0 Play Time 03:55:10 Cumulative 143.0 hours Start 2024.11.09 @ 13:49:02 End 2024.11.09 @ 21:05:36 Sessions 1 Manual Loads 0 Difficulty Rogue Special Mode None Game No. 44 Rogue 44 Adventurer 0 Explorer 0 Win Type - Total 0 Types 0/0/0/0/0/0/0/0/0 Lore% 18 Gallery% 46 Achievement% 38 Wizard Run 0 Options --------- Layout 0 ASCII 0 Keyboard 0 Movement Mouse Keybinds 0 Fullscreen 1 Font 36/Smallcaps Map View 76x50 Zoom Use 0% Tactical HUD 1 Map Filters NONE Filters NONE Steam X RUN: 66c60a32-695e-4a80-a34a-630ef3849849